Cogmind - Beta 13 @@@ ROGUE MODE // 2024.05.01 @ 13:01:46 Player: A Foxgirl OwO Result: Self-destructed Performance ------------- Evolutions (2) 1000 Regions Visited (5) 1000 Robots Destroyed (6) 30 Value Destroyed (188) 188 Prototype IDs (23) 460 Alien Tech Used (0) 0 Bonus (307) 307 TOTAL SCORE: 2985 Bonus ------- Follower Combat Kills 7 Aligned with FarCom 300 Cogmind --------- Core Integrity 550/550 Matter 293/300 Energy 250/250 System Corruption 0% Temperature Cool (0) Movement Treading (160) Location -8/Materials Parts ------- > --- POWER (1) -------- Ion Engine > --- PROPULSION (4) --- Light Treads Light Treads Light Treads > --- UTILITY (4) ------ Medium Storage Unit Improved Signal Interpreter Tractor Beam > --- WEAPON (2) ------- Assault Rifle Assault Rifle > --- INVENTORY (10) --- Light Ion Engine Aluminum Leg Aluminum Leg Cesium-ion Thruster Medium Storage Unit Propulsion Shielding Trap Reconfigurator Assault Rifle Assault Rifle Grenade Launcher Peak State ------------ > --- POWER ------------ Ion Engine > --- PROPULSION ------- Light Treads Light Treads Light Treads > --- UTILITY ---------- Medium Storage Unit Improved Signal Interpreter Tractor Beam > --- WEAPON ----------- Assault Rifle Assault Rifle > --- INVENTORY -------- Light Ion Engine Aluminum Leg Aluminum Leg Cesium-ion Thruster Medium Storage Unit Propulsion Shielding Trap Reconfigurator Assault Rifle Assault Rifle Grenade Launcher [Rating: 13] Favorites ----------- Power Ion Engine Engine Ion Engine Propulsion Light Treads Treads Light Treads Utility Medium Storage Unit Device Tractor Beam Storage Medium Storage Unit Processor Improved Signal Interpreter Weapon Assault Rifle Ballistic Gun Assault Rifle Build | -11 -10 -10 -10 -9 -8 ------- Run | Yrd Mat Min Exi Min Mat Slots Evolved 4 | . . . . . 4 Power . | . . . . . . Propulsion 2 | . . . . . 2 Utility 2 | . . . . . 2 Weapon . | . . . . . . Parts Attached 12 | 6 3 1 . . 2 Power 1 | 1 . . . . . Engine 1 | 1 . . . . . Core . | . . . . . . Reactor . | . . . . . . Propulsion 3 | 2 . . . . 1 Treads 3 | 2 . . . . 1 Leg . | . . . . . . Wheel . | . . . . . . Hover . | . . . . . . Flight . | . . . . . . Utility 4 | 1 1 1 . . 1 Device 1 | . . 1 . . . Storage 2 | 1 1 . . . . Processor 1 | . . . . . 1 Hackware . | . . . . . . Protection . | . . . . . . Artifact . | . . . . . . Weapon 4 | 2 2 . . . . Energy Gun . | . . . . . . Energy Cannon . | . . . . . . Ballistic Gun 4 | 2 2 . . . . Ballistic Cannon . | . . . . . . Launcher . | . . . . . . Special Weapon . | . . . . . . Impact Weapon . | . . . . . . Slashing Weapon . | . . . . . . Piercing Weapon . | . . . . . . Special Melee Weapon . | . . . . . . Unidentified Prototypes . | . . . . . . Parts Lost . | . . . . . . Power . | . . . . . . Propulsion . | . . . . . . Utility . | . . . . . . Weapon . | . . . . . . Highest Loss Streak . | . . . . . . To Critical Strikes . | . . . . . . Average Slot Usage (%) 93 | . 85 99 100 100 79 Engine 13 | . 14 14 14 14 9 Treads 27 | . 28 28 28 28 27 Device 8 | . . 13 14 14 9 Storage 13 | . 14 14 14 14 9 Ballistic Gun 27 | . 28 28 28 28 18 Naked Turns . | . . . . . . Heaviest Build 20 | 13 19 20 20 20 20 Greatest Support 60 | 40 40 40 40 40 60 Greatest Overweight (x) . | . . . . . . Average Overweight (x) . | . . . . . . Largest Inventory Capacity 10 | 8 10 10 10 10 10 Average Capacity 9 | 7 8 10 10 10 10 Most Carried 10 | 6 10 10 10 10 10 Average Carried 8 | 4 7 9 9 10 9 Final Capacity 10 | 8 10 10 10 10 10 Final Carried 10 | 6 10 9 10 10 10 Class Distribution -------------------- 100% | Mutant Dominant Class ---------------- Mutant | -10/Materials Mutant | -10/Mines Mutant | -10/Exiles Mutant | -9/Mines Mutant | -8/Materials Resources | -11 -10 -10 -10 -9 -8 ----------- Run | Yrd Mat Min Exi Min Mat Matter Collected 389 | 215 109 40 . . 25 Remotely 39 | . . 14 . . 25 Salvage Created 232 | . 232 . . . . Parts 20 | . 20 . . . . Haulers Intercepted . | . . . . . . Recyclers Shooed . | . . . . . . Parts Field Recycled . | . . . . . . Retrieved Matter . | . . . . . . Parts Self-Destructed . | . . . . . . Prevented . | . . . . . . Kills | -11 -10 -10 -10 -9 -8 ------- Run | Yrd Mat Min Exi Min Mat Combat Hostiles Destroyed 5 | . 5 . . . . Guns 5 | . 5 . . . . Classes Destroyed 2 | . 2 . . . . Builder 1 | . 1 . . . . Grunt 5 | . 5 . . . . Best Kill Streak 3 | . 3 . . . . Combat Bots Only 3 | . 3 . . . . Max Kills in Single Turn 2 | . 2 . . . . Gunslinging . | . . . . . . Exploded . | . . . . . . Melee . | . . . . . . Uniques/NPCs Destroyed . | . . . . . . Combat | -11 -10 -10 -10 -9 -8 -------- Run | Yrd Mat Min Exi Min Mat Hostile Shots Fired 32 | . 20 . . 12 . Missed 11 | . 7 . . 4 . Damage Taken 222 | . 162 . . 60 . Core 31 | . 24 . . 7 . Absorbed by Shields . | . . . . . . Core Remaining (%) 93 | 100 . . . 87 . Volleys Fired 18 | . 16 . . 1 1 Largest 2 | . 2 . . 2 2 Hottest 40 | . 40 . . 40 40 Shots Fired 36 | . 32 . . 2 2 Gun 36 | . 32 . . 2 2 Cannon . | . . . . . . Launcher . | . . . . . . Special . | . . . . . . Kinetic 36 | . 32 . . 2 2 Thermal . | . . . . . . Explosive . | . . . . . . Electromagnetic . | . . . . . . Robot Hit Streak 9 | . 9 . . . 3 Robot Miss Streak 3 | . 3 . . . . Penetration Max . | . . . . . . Secondary Targets . | . . . . . . Shots Hit Robots 24 | . 22 . . . 2 Core Hits 13 | . 12 . . . 1 Critical Kills . | . . . . . . Critical Parts Destroyed . | . . . . . . Critical Strikes . | . . . . . . Melee Attacks . | . . . . . . Impact . | . . . . . . Slashing . | . . . . . . Piercing . | . . . . . . Sneak Attacks . | . . . . . . Combat Hostiles . | . . . . . . Follow-up Attacks . | . . . . . . Damage Inflicted 272 | . 248 . . . 24 Guns 272 | . 248 . . . 24 Cannons . | . . . . . . Explosions . | . . . . . . Melee . | . . . . . . Ramming . | . . . . . . Kinetic 272 | . 248 . . . 24 Thermal . | . . . . . . Explosive . | . . . . . . Electromagnetic . | . . . . . . Impact . | . . . . . . Slashing . | . . . . . . Piercing . | . . . . . . Highest Corruption . | . . . . . . Average Corruption . | . . . . . . Corruption Purged . | . . . . . . Corruption Blocked . | . . . . . . Overload Shots . | . . . . . . Overflow Damage . | . . . . . . Projectiles . | . . . . . . Explosions . | . . . . . . Melee . | . . . . . . Knockbacks . | . . . . . . Impact . | . . . . . . Kinetic . | . . . . . . Secondary . | . . . . . . Self-Inflicted Damage . | . . . . . . Shots . | . . . . . . Rammed . | . . . . . . Targets Rammed . | . . . . . . Kicked . | . . . . . . Crushed . | . . . . . . Highest Temperature 12 | . 12 . . . . Average Temperature 6 | . 6 . . . . Received Heat Transfer 87 | . 87 . . . . Siege Activations . | . . . . . . Robots Corrupted . | . . . . . . Combat Hostiles . | . . . . . . Parts Fried . | . . . . . . Impact Corruptions . | . . . . . . Robots Melted . | . . . . . . Combat Hostiles . | . . . . . . Parts Melted . | . . . . . . Heat Transferred . | . . . . . . Parts Sabotaged . | . . . . . . Parts Stolen . | . . . . . . Parts Stripped . | . . . . . . Power Chain Reactions . | . . . . . . Alert | -11 -10 -10 -10 -9 -8 ------- Run | Yrd Mat Min Exi Min Mat Peak Influence 115 | . 115 5 . 36 35 Initial 13 | . . 5 . . 13 Average 16 | . 35 2 . . 23 Maximum Alert Level . | . . . . . . Low Security (%) 100 | 100 100 100 . 100 100 Level 1 . | . . . . . . Level 2 . | . . . . . . Level 3 . | . . . . . . Level 4 . | . . . . . . Level 5 . | . . . . . . High Security . | . . . . . . Max Security . | . . . . . . Squads Dispatched 2 | . 1 . . . 1 Investigation 1 | . 1 . . . . Extermination . | . . . . . . Reinforcement 1 | . . . . . 1 Assault . | . . . . . . Garrison . | . . . . . . Intercept . | . . . . . . Searches Triggered . | . . . . . . Construction Impeded . | . . . . . . Haulers Reinforced . | . . . . . . Active Scanning Responses . | . . . . . . Cargo Convoy Interrupts . | . . . . . . Stealth | -11 -10 -10 -10 -9 -8 --------- Run | Yrd Mat Min Exi Min Mat Distress Signals . | . . . . . . Communications Jammed . | . . . . . . Distress Signals . | . . . . . . Times Spotted 22 | . 13 . . 4 5 Peak Tracking Total 4 | . 3 . . 4 3 Tactical Retreats . | . . . . . . Traps | -11 -10 -10 -10 -9 -8 ------- Run | Yrd Mat Min Exi Min Mat Traps Triggered 1 | . 1 . . . . Indirectly . | . . . . . . Trap Hack Attempts . | . . . . . . Triggered . | . . . . . . Disarmed . | . . . . . . Reprogrammed . | . . . . . . Reused . | . . . . . . Traps Extracted . | . . . . . . Installed . | . . . . . . Triggered . | . . . . . . Machines | -11 -10 -10 -10 -9 -8 ---------- Run | Yrd Mat Min Exi Min Mat Machines Disabled . | . . . . . . Max in Single Turn . | . . . . . . Machines Repaired . | . . . . . . Machines Dismantled . | . . . . . . Machines Sabotaged . | . . . . . . Overloaded Fab Kills . | . . . . . . Hacking | -11 -10 -10 -10 -9 -8 --------- Run | Yrd Mat Min Exi Min Mat Machines Accessed 5 | . 4 . 1 . . Terminals 4 | . 4 . . . . Fabricators . | . . . . . . Repair Stations . | . . . . . . Recycling Units . | . . . . . . Scanalyzers . | . . . . . . Garrison Access . | . . . . . . Total Hacks 11 | . 10 . 1 . . Successful 4 | . 3 . 1 . . Failed 7 | . 7 . . . . Catastrophic 3 | . 3 . . . . Database Lockouts . | . . . . . . Manual 9 | . 8 . 1 . . Terminals 10 | . 10 . . . . Fabricators . | . . . . . . Repair Stations . | . . . . . . Recycling Units . | . . . . . . Scanalyzers . | . . . . . . Garrison Access . | . . . . . . Terminal Hacks 4 | . 3 . 1 . . Branch Access Points 1 | . 1 . . . . Locate Traps 1 | . 1 . . . . Registered Components 1 | . 1 . . . . Derelict Proto ID Bank 1 | . . . 1 . . Fabricator Hacks . | . . . . . . Repair Station Hacks . | . . . . . . Recycling Unit Hacks . | . . . . . . Scanalyzer . | . . . . . . Garrison Access Hacks . | . . . . . . Unauthorized Hacks . | . . . . . . Terminals . | . . . . . . Fabricators . | . . . . . . Repair Stations . | . . . . . . Recycling Units . | . . . . . . Scanalyzers . | . . . . . . Garrison Access . | . . . . . . Data Cores Recovered . | . . . . . . Used . | . . . . . . Hacking Detections 3 | . 3 . . . . Full Trace Events . | . . . . . . Feedback Events . | . . . . . . Feedback Blocked . | . . . . . . Robot Schematics Acquired . | . . . . . . Robots Built . | . . . . . . Authchips . | . . . . . . Time . | . . . . . . Total Robot Build Rating . | . . . . . . Part Schematics Acquired . | . . . . . . Parts Built . | . . . . . . Authchips . | . . . . . . Time . | . . . . . . Total Part Build Rating . | . . . . . . Parts Repaired . | . . . . . . Time . | . . . . . . Parts Recycled . | . . . . . . Recycled Matter . | . . . . . . Retrieved Matter . | . . . . . . Retrieved Components . | . . . . . . Parts Scanalyzed . | . . . . . . Part Schematics Acquired . | . . . . . . Parts Damaged . | . . . . . . Bothacking | -11 -10 -10 -10 -9 -8 ------------ Run | Yrd Mat Min Exi Min Mat Used RIF Installer . | . . . . . . Robots Hacked . | . . . . . . Non-combat . | . . . . . . Combat . | . . . . . . Robot Hacks Applied . | . . . . . . Relay Couplers Released . | . . . . . . Fabnet Peak Effective % . | . . . . . . Robots Rewired . | . . . . . . Allies Hacked . | . . . . . . Hacks Repelled . | . . . . . . Allies | -11 -10 -10 -10 -9 -8 -------- Run | Yrd Mat Min Exi Min Mat Total Allies 1 | . . . . 1 . Largest Group 1 | . . . . 1 1 Highest-Rated Group 31 | . . . . 31 31 Highest-Rated Ally 31 | . . . . 31 31 Total Orders . | . . . . . . Ally Attacks 3 | . . . . 2 1 Total Damage 41 | . . . . 21 20 Kills 2 | . . . . 1 1 Allies Corrupted . | . . . . . . Allies Melted . | . . . . . . Intel | -11 -10 -10 -10 -9 -8 ------- Run | Yrd Mat Min Exi Min Mat Robot Analysis Total . | . . . . . . Derelict Logs Recovered 3 | . . 1 . 2 . Drone Launches . | . . . . . . Drone Recoveries . | . . . . . . Exploration | -11 -10 -10 -10 -9 -8 ------------- Run | Yrd Mat Min Exi Min Mat Turns Passed 2707 | 117 913 934 347 233 163 Spaces Moved 1321 | 66 405 427 217 131 75 Core 5 | 5 . . . . . Treads 1316 | 61 405 427 217 131 75 Legs . | . . . . . . Wheels . | . . . . . . Hover . | . . . . . . Flight . | . . . . . . Fastest Speed 50 | 50 160 160 160 160 160 Average Speed 159 | 151 160 160 160 160 160 Slowest Speed 160 | 160 160 160 160 160 160 Overloaded Moves . | . . . . . . Propulsion Burnouts . | . . . . . . Robots Hopped . | . . . . . . Cave-ins Triggered . | . . . . . . Exploration Rate (%) 38 | 5 57 72 61 30 6 Regions Visited 5 Branch Regions 3 Pre-discovered Areas . | . . . . . . Known Exits Taken 1 | . 1 . . . . Unknown Exits Taken 4 | 1 . 1 1 1 . Scrap Searched 1 | . . 1 . . . Spaces Dug . | . . . . . . Terrain Destroyed . | . . . . . . Melee . | . . . . . . Projectile . | . . . . . . AOE . | . . . . . . Terrain Rammed . | . . . . . . Walls Destroyed . | . . . . . . Machines Disabled . | . . . . . . Actions | -11 -10 -10 -10 -9 -8 --------- Run | Yrd Mat Min Exi Min Mat Total 1888 | 80 645 678 217 153 115 Wait 522 | 3 213 248 . 22 36 Move 1316 | 65 404 426 216 130 75 Hop . | . . . . . . Pick Up 14 | 6 5 1 1 . 1 Fast Attach 9 | 6 1 1 . . 1 Attach 1 | . . . . . 1 Detach . | . . . . . . Swap 2 | . 2 . . . . Drop 6 | . 4 2 . . . Fire 18 | . 16 . . 1 1 Melee . | . . . . . . Ram . | . . . . . . Kick . | . . . . . . Crush . | . . . . . . Escape Stasis . | . . . . . . Rewire . | . . . . . . Trap . | . . . . . . Miscellaneous . | . . . . . . Route ------- -11/Scrapyard -10/Materials (discovered 3 exits: [*Mat x2] / *Min) -10/Mines (discovered 2 exits: [*Mat] / *Exi) -10/Exiles -9/Mines -8/Materials (discovered 1 exit: Fac) History --------- Turn | Location | Event 11 | -11/Scrapyard | Discovered new exit (range 15) 118 | -11/Scrapyard | Entered Materials 309 | -10/Materials | Build established: Mutant 621 | -10/Materials | Discovered new exit (range 3) 630 | -10/Materials | Identified exit to Mines 725 | -10/Materials | Discovered new exit (range 14) 1031 | -10/Materials | Entered Mines 1145 | -10/Mines | Discovered new exit (range 12) 1175 | -10/Mines | YI-UF0 nonchalantly dropped a Grenade Launcher on the ground 1486 | -10/Mines | Learned Materials garrison access intel 1957 | -10/Mines | Deemed a non-threat by the Exiles lab entrance 1958 | -10/Mines | Discovered new exit (range 5) 1965 | -10/Mines | Entered Exiles 2004 | -10/Exiles | Met 8R-AWN 2033 | -10/Exiles | Met EX-HEX 2077 | -10/Exiles | Met EX-BIN 2100 | -10/Exiles | Aligned with FarCom system 2101 | -10/Exiles | Given EX-Vault access code 2151 | -10/Exiles | Opened EX-Vault 2161 | -10/Exiles | Found Trap Reconfigurator 2192 | -10/Exiles | Warned to stay clear of 0b10 Research branches 2217 | -10/Exiles | Exiles lab attacked by MAIN.C 2293 | -10/Exiles | Discovered new exit (range 14) 2312 | -10/Exiles | Left Exiles lab with Trap Reconfigurator 2312 | -10/Exiles | Entered Mines 2390 | -9/Mines | Learned Materials stockpile data 2419 | -9/Mines | Received a Mining Laser from a helpful Derelict 2526 | -9/Mines | Discovered new exit (range 10) 2545 | -9/Mines | Entered Materials 2545 | -8/Materials | Accompanied by 1 ally 2545 | -8/Materials | Evolved 4 slots: Propulsion x2, Utility x2 2546 | -8/Materials | Identified exit to Factory 2548 | -8/Materials | Loaded intel: 1 garrison access location 2708 | -8/Materials | Self-destructed Last Messages --------------- I'll cover you." BL-MNB(g): "Mining lasers are a lot more useful than you might think..." EXIT=FOUND S-10 Pest destroyed. PARAMETERS=PROPULSION+2,UTILITY+2 LOCATION=UNKNOWN GOAL=ESCAPE Receiving FarCom transmissions... Loading 1 Factory entrance... Loading Materials stockpile data (x4)... Loading Materials garrison access intel (x1)... Acquired Cesium-ion Thruster. Acquired Imp. Signal Interpreter. ALERT: Hostiles spotted, dispatching reinforcements to Terminal M002. W-25 Informer destroyed. Acquired 25 matter. BL-MNB(g): "You look like you can take it from here!" BL-MNB(g) slips back into the shadows. Map ----- +----------------------------------------------------+ | | | | | | | | | | | | | | | | | | | | | | | | | | | | | | | | | | | ?????????????????????????????????????????????????? | | ?????????????????????????????????????????????????? | | ?????????????????????????????????????????????????? | | ?????????????????????????????!???????????????????? | | ????##################???????????????????????????? | | ????# #???????????????????????????? | | ????# #???????????????????????????? | | ????# ########+#####??????????????? | | ????######+######### ! @ +??????????????? | | ?????# = #???# ^ ##???????????????? | | ?????# = #???# ^ #????????????????? | | ?????# #???#! ! #????????????????? | | ?????# = #???# #????????????????? | | ?????# #???# "T" #????????????????? | | ?????# #???# """ #????????????????? | | ?????# ##### //=?????????????? | | ?????# / u /==?????????????? | | ?????###################### " /gg ????????????? | | ??????????????????????????? T ????????????? | | ???????????????????????????# " g???????????? | | ???????????????????????????? ??????????????? | | ???????????????????????????? ?????????????????? | | ????????????????????????????? ????????????????? | | ?????????????????????????????? ??????????????????? | | ?????????????????????????????????????????????????? | | ?????????????????????????????????????????????????? | | ?????????????????????????????????????????????????? | | ?????????????????????????????????????????????????? | | ?????????????????????????????????????????????????? | | ?????????????????????????????????????????????????? | | ?????????????????????????????????????????????????? | | ?????????????????????????????????????????????????? | | ?????????????????????????????????????????????????? | +----------------------------------------------------+ Best States ------------- Heat Dissipation 31 Energy Generation 10 Energy Capacity 250 Matter Stores 300 Matter Capacity 300 Sight Range 16 Terrain Scan Density 10 Evasion (%) 40 Recoil Reduction 3 Item Schematics ----------------- None Robot Schematics ------------------ None Fabricated ------------ Nothing Alien Tech Used ----------------- None Achievements -------------- None Challenges ------------ None Game ------ Seed CloakingStorageModule Manual? 0 Play Time 00:17:38 Cumulative 17.7 hours Start 2024.04.30 @ 19:42:44 End 2024.05.01 @ 13:01:46 Sessions 3 Manual Loads 0 Difficulty Rogue Special Mode None Game No. 41 Rogue 41 Adventurer 0 Explorer 0 Win Type - Total 0 Types 0/0/0/0/0/0/0/0/0 Lore% 16 Gallery% 17 Achievement% 16 Wizard Run 0 Options --------- Layout 1 ASCII 0 Keyboard 0 Movement Mouse Keybinds 0 Fullscreen 0 Font 42/SmallcapsGlow Map View 59x39 Zoom Use 0% Tactical HUD 0 Map Filters NONE Filters NONE Steam 1 RUN: a573e688-b48c-429b-ba7d-abe2931b1e02